bitfinex-derivatives/quotes_BNBF0:USTF0_20250609
["timestamp","ask_amount","ask_price","bid_price","bid_amount"]
[1749502303420,1.05099658,661.7,661.22,2.25389651]
[1749502303619,1.05099658,661.69,661.22,2.25389651]
[1749502303820,1.05099658,661.68,661.22,2.25389651]
[1749502304120,1.05099658,661.71,661.22,2.25389651]
[1749502304320,1.05099658,661.7,661.22,2.25389651]
[1749502304518,1.05099658,661.69,661.22,2.25389651]
[1749502304824,1.05099658,661.68,661.22,2.25389651]
[1749502305224,1.05099658,661.71,661.22,2.25389651]
[1749502305424,1.05099658,661.7,661.22,2.25389651]
[1749502305620,1.05099658,661.69,661.22,2.25389651]
[1749502305825,1.05099658,661.68,661.23,2.25389651]
[1749502306022,1.05099658,661.71,661.23,2.25389651]
[1749502306326,1.05099658,661.7,661.23,2.25389651]
[1749502306525,1.05099658,661.69,661.23,2.25389651]
[1749502306722,1.05099658,661.68,661.23,2.25389651]
[1749502306926,1.05099658,661.71,661.23,2.25389651]
[1749502307124,1.05099658,661.7,661.23,2.25389651]
[1749502307323,1.05099658,661.69,661.23,2.25389651]
[1749502307523,1.05099658,661.68,661.23,2.25389651]
[1749502307826,1.05099658,661.71,661.21,2.25389651]
[1749502308026,1.05099658,661.7,661.18,2.25389651]
[1749502308324,1.05099658,661.69,661.18,2.25389651]
[1749502308523,1.05099658,661.68,661.18,2.25389651]
[1749502308723,1.05099658,661.67,661.18,2.25389651]
[1749502308928,1.05099658,661.71,661.18,2.25389651]
[1749502309126,1.05099658,661.7,661.18,2.25389651]
[1749502309327,1.05099658,661.69,661.18,2.25389651]
[1749502309526,0.26305644,661.72,661.18,2.25389651]
[1749502309527,1.05099658,661.68,661.18,2.25389651]
[1749502309725,1.05099658,661.67,661.18,2.25389651]
[1749502309927,1.05099658,661.71,661.18,2.25389651]
[1749502310127,1.05099658,661.7,661.18,2.25389651]
[1749502310431,1.05099658,661.69,661.18,2.25389651]
[1749502310629,1.05099658,661.68,661.18,2.25389651]
[1749502310833,1.05099658,661.67,661.18,2.25389651]
[1749502311030,1.05099658,661.71,661.18,2.25389651]
[1749502311333,1.05099658,661.7,661.17,2.25389651]
[1749502311633,1.05099658,661.69,661.17,2.25389651]
[1749502311828,1.05099658,661.68,661.17,2.25389651]
[1749502312028,1.05099658,661.67,661.17,2.25389651]
[1749502312229,1.05099658,661.71,661.17,2.25389651]
[1749502312529,1.05099658,661.7,661.17,2.25389651]
[1749502312828,1.05099658,661.69,661.17,2.25389651]
[1749502313028,1.05099658,661.68,661.15,2.25389651]
[1749502313233,1.05099658,661.67,661.15,2.25389651]
[1749502313434,1.05099658,661.66,661.15,2.25389651]
[1749502313633,1.05099658,661.71,661.15,2.25389651]
[1749502313933,1.05099658,661.7,661.15,2.25389651]
[1749502314129,1.05099658,661.69,661.15,2.25389651]
[1749502314433,1.05099658,661.68,661.16,2.25389651]
[1749502314729,1.05099658,661.67,661.15,2.25389651]
[1749502315033,1.05099658,661.66,661.15,2.25389651]
[1749502315228,1.05099658,661.71,661.15,2.25389651]
[1749502315434,1.05099658,661.7,661.15,2.25389651]
[1749502315728,1.05099658,661.7,661.03,0.30255812]
[1749502315729,1.05099658,661.69,661.16,2.25389651]
[1749502315931,0.26305644,661.72,661.16,2.25389651]
[1749502315932,1.05099658,661.68,661.16,2.25389651]
[1749502316130,1.05099658,661.71,661.16,2.25389651]
[1749502316428,1.05099658,661.7,661.16,2.25389651]
[1749502316627,1.05099658,661.69,661.16,2.25389651]
[1749502316827,1.05099658,661.68,661.16,2.25389651]
[1749502317228,1.05099658,661.71,661.16,2.25389651]
[1749502317428,1.05099658,661.7,661.17,2.25389651]
[1749502317732,1.05099658,661.69,661.17,2.25389651]
[1749502317928,1.05099658,661.71,661.19,2.25389651]
[1749502318128,1.05099658,661.7,661.19,2.25389651]
[1749502318328,1.05099658,661.69,661.19,2.25389651]
[1749502318528,1.05099658,661.71,661.19,2.25389651]
[1749502318828,1.05099658,661.7,661.19,2.25389651]
[1749502319031,0.26305644,661.72,661.19,2.25389651]
[1749502319032,1.05099658,661.69,661.19,2.25389651]
[1749502319233,1.05099658,661.71,661.19,2.25389651]
[1749502319433,1.05099658,661.7,661.19,2.25389651]
[1749502319733,1.05099658,661.69,661.19,2.25389651]
[1749502319930,1.05099658,661.71,661.19,2.25389651]
[1749502320131,1.05099658,661.7,661.19,2.25389651]
[1749502320330,1.05099658,661.69,661.19,2.25389651]
[1749502320534,1.05099658,661.71,661.19,2.25389651]
[1749502320733,1.05099658,661.7,661.19,2.25389651]
[1749502320930,1.05099658,661.69,661.19,2.25389651]
[1749502321136,1.05099658,661.71,661.2,2.25389651]
[1749502321336,1.05099658,661.7,661.2,2.25389651]
[1749502321535,1.05099658,661.69,661.2,2.25389651]
[1749502321830,1.05099658,661.71,661.2,2.25389651]
[1749502322035,1.05099658,661.7,661.2,2.25389651]
[1749502322335,1.05099658,661.69,661.2,2.25389651]
[1749502322637,1.05099658,661.71,661.2,2.25389651]
[1749502322831,1.05099658,661.7,661.22,2.25389651]
[1749502323034,1.05099658,661.69,661.21,2.25389651]
[1749502323236,1.05099658,661.71,661.21,2.25389651]
[1749502323431,1.05099658,661.7,661.21,2.25389651]
[1749502323631,1.05099658,661.69,661.21,2.25389651]
[1749502323834,1.05099658,661.71,661.21,2.25389651]
[1749502324036,1.05099658,661.7,661.21,2.25389651]
[1749502324233,1.05099658,661.69,661.21,2.25389651]
[1749502324430,1.05099658,661.68,661.21,2.25389651]
[1749502324635,1.05099658,661.71,661.22,2.25389651]
[1749502324938,1.05099658,661.7,661.22,2.25389651]
[1749502325130,1.05099658,661.69,661.22,2.25389651]
[1749502325333,1.05099658,661.68,661.22,2.25389651]
[1749502325532,1.05099658,661.7,661.22,2.25389651]
[1749502325729,1.05099658,661.69,661.22,2.25389651]
[1749502325931,1.05099658,661.68,661.22,2.25389651]
[1749502326131,1.05099658,661.71,661.22,2.25389651]
[1749502326432,1.05099658,661.7,661.22,2.25389651]
[1749502326735,1.05099658,661.69,661.22,2.25389651]
[1749502326935,1.05099658,661.68,661.22,2.25389651]
[1749502327135,1.05099658,661.71,661.22,2.25389651]
[1749502327332,1.05099658,661.7,661.22,2.25389651]
[1749502327637,1.05099658,661.69,661.22,2.25389651]
[1749502327933,1.05099658,661.68,661.22,2.25389651]
[1749502328140,1.05099658,661.71,661.22,2.25389651]
[1749502328336,0.26305644,661.72,661.22,2.25389651]
[1749502328337,1.05099658,661.7,661.22,2.25389651]
[1749502328633,1.05099658,661.69,661.22,2.25389651]
[1749502328839,1.05099658,661.68,661.22,2.25389651]
[1749502329136,1.05099658,661.71,661.22,2.25389651]
[1749502329337,1.05099658,661.7,661.22,2.25389651]
[1749502329537,1.05099658,661.69,661.22,2.25389651]
[1749502329833,1.05099658,661.68,661.22,2.25389651]
[1749502330033,1.05099658,661.71,661.22,2.25389651]
[1749502330233,1.05099658,661.7,661.22,2.25389651]
[1749502330531,1.05099658,661.69,661.22,2.25389651]
[1749502330733,1.05099658,661.68,661.22,2.25389651]
[1749502330934,1.05099658,661.71,661.22,2.25389651]
[1749502331134,1.05099658,661.7,661.22,2.25389651]
[1749502331337,1.05099658,661.69,661.18,2.25389651]
[1749502331633,1.05099658,661.68,661.18,2.25389651]
[1749502331934,1.05099658,661.71,661.2,2.25389651]
[1749502332134,1.05099658,661.7,661.2,2.25389651]
[1749502332334,1.05099658,661.69,661.2,2.25389651]
[1749502332534,1.05099658,661.68,661.2,2.25389651]
[1749502332734,1.05099658,661.71,661.2,2.25389651]
[1749502332935,1.05099658,661.7,661.2,2.25389651]
[1749502333134,1.05099658,661.69,661.2,2.25389651]
[1749502333336,1.05099658,661.68,661.2,2.25389651]
[1749502333538,1.05099658,661.71,661.2,2.25389651]
[1749502333737,1.05099658,661.7,661.2,2.25389651]
[1749502333937,1.05099658,661.69,661.2,2.25389651]
[1749502334137,1.05099658,661.68,661.2,2.25389651]
[1749502334337,1.05099658,661.67,661.2,2.25389651]
[1749502334637,1.05099658,661.71,661.2,2.25389651]
[1749502334940,1.05099658,661.7,661.2,2.25389651]
[1749502335141,1.05099658,661.69,661.2,2.25389651]
[1749502335342,1.05099658,661.68,661.2,2.25389651]
[1749502335640,1.05099658,661.67,661.2,2.25389651]
[1749502335837,1.04390304,661.71,661.2,2.25389651]
[1749502336041,1.04390304,661.7,661.2,2.25389651]
[1749502336245,1.04390304,661.69,661.2,2.25389651]
[1749502336441,1.04390304,661.68,661.2,2.25389651]
[1749502336739,1.04390304,661.67,661.2,2.25389651]
[1749502336939,1.04390304,661.71,661.2,2.25389651]
[1749502337137,1.04390304,661.7,661.2,2.25389651]
[1749502337343,1.04390304,661.69,661.2,2.25389651]
[1749502337542,2.69936923,661.71,661.2,2.25389651]
[1749502337543,1.04390304,661.68,661.2,2.25389651]
[1749502337843,1.04390304,661.67,661.21,2.25389651]
[1749502338040,1.04390304,661.71,661.21,2.25389651]
[1749502338239,1.04390304,661.7,661.21,2.25389651]
[1749502338443,1.04390304,661.69,661.21,2.25389651]
[1749502338643,1.04390304,661.68,661.21,2.25389651]
[1749502338843,1.04390304,661.67,661.2,2.25389651]
[1749502339143,1.04390304,661.71,661.2,2.25389651]
[1749502339339,1.04390304,661.7,661.2,2.25389651]
[1749502339541,1.04390304,661.69,661.2,2.25389651]
[1749502339843,1.04390304,661.68,661.2,2.25389651]
[1749502340038,1.04390304,661.67,661.2,2.25389651]
[1749502340243,1.04390304,661.71,661.2,2.25389651]
[1749502340442,1.04390304,661.7,661.2,2.25389651]
[1749502340639,1.04390304,661.69,661.2,2.25389651]
[1749502340839,1.04390304,661.68,661.2,2.25389651]
[1749502341039,1.04390304,661.67,661.2,2.25389651]
[1749502341244,1.04390304,661.69,661.24,2.25389651]
[1749502341444,1.04390304,661.68,661.24,2.25389651]
[1749502341644,1.04390304,661.71,661.24,2.25389651]
[1749502341841,1.04390304,661.7,661.24,2.25389651]
[1749502342146,1.04390304,661.69,661.24,2.25389651]
[1749502342347,1.04390304,661.68,661.24,2.25389651]
[1749502342646,1.04390304,661.71,661.24,2.25389651]
[1749502342942,1.04390304,661.7,661.24,2.25389651]
[1749502343140,1.04390304,661.69,661.24,2.25389651]
[1749502343342,1.04390304,661.68,661.24,2.25389651]
[1749502343546,1.54539936,661.68,661.24,2.25389651]
[1749502343846,1.04390304,661.71,661.24,2.25389651]
[1749502344142,1.04390304,661.7,661.24,2.25389651]
[1749502344346,1.04390304,661.69,661.24,2.25389651]
[1749502344547,1.04390304,661.68,661.24,2.25389651]
[1749502344749,1.04390304,661.71,661.24,2.25389651]
[1749502345048,1.04390304,661.7,661.24,2.25389651]
[1749502345247,1.04390304,661.69,661.23,2.25389651]
[1749502345447,1.04390304,661.68,661.23,2.25389651]
[1749502345946,1.04390304,661.71,661.23,2.25389651]
[1749502346147,1.04390304,661.7,661.23,2.25389651]
[1749502346347,1.04390304,661.69,661.19,2.25389651]
[1749502346545,1.04390304,661.68,661.19,2.25389651]
[1749502346749,1.04390304,661.67,661.19,2.25389651]
[1749502347048,1.04390304,661.71,661.19,2.25389651]
[1749502347348,1.04390304,661.7,661.19,2.25389651]
[1749502347543,1.04390304,661.69,661.19,2.25389651]
[1749502347749,1.04354489,661.68,661.19,2.25389651]
[1749502347950,1.04354489,661.67,661.19,2.25389651]
[1749502348144,1.04354489,661.71,661.19,2.25389651]
[1749502348348,1.04354489,661.7,661.19,2.25389651]
[1749502348545,1.04354489,661.69,661.19,2.25389651]
[1749502348748,1.04354489,661.68,661.19,2.25389651]
[1749502349045,1.04354489,661.67,661.19,2.25389651]
[1749502349244,1.04354489,661.71,661.18,2.25389651]
[1749502349450,1.04354489,661.7,661.19,2.25389651]
[1749502349645,1.04354489,661.69,661.19,2.25389651]
[1749502349847,1.04354489,661.68,661.19,2.25389651]
[1749502350145,1.04354489,661.67,661.19,2.25389651]
[1749502350345,2.72593545,661.68,661.19,2.25389651]
[1749502350544,2.22436821,661.67,661.19,2.25389651]
[1749502350743,2.22436821,661.66,661.19,2.25389651]
[1749502350947,2.22436821,661.65,661.17,2.25389651]
[1749502351148,1.04354489,661.64,661.17,2.25389651]
[1749502351349,0.26305644,661.72,661.17,2.25389651]
[1749502351350,1.04354489,661.71,661.17,2.25389651]
[1749502351650,1.04354489,661.7,661.16,2.25389651]
[1749502351948,1.04354489,661.69,661.16,2.25389651]
[1749502352144,1.04354489,661.68,661.16,2.25389651]
[1749502352344,1.04354489,661.67,661.16,2.25389651]
[1749502352549,1.04354489,661.71,661.16,2.25389651]
[1749502352745,1.04354489,661.7,661.16,2.25389651]
[1749502352944,1.04354489,661.69,661.16,2.25389651]
[1749502353145,1.04354489,661.68,661.17,2.25389651]
[1749502353346,1.04354489,661.67,661.17,2.25389651]
[1749502353650,3.74133028,661.71,661.17,2.25389651]
[1749502353844,2.05931859,661.7,661.17,2.25389651]
[1749502354047,3.74133193,661.69,661.17,2.25389651]
[1749502354248,2.72555761,661.68,661.17,2.25389651]
[1749502354444,2.22405302,661.67,661.17,2.25389651]
[1749502354648,2.22408424,661.66,661.17,2.25389651]
[1749502354849,0.26305644,661.72,661.17,2.25389651]
[1749502354850,1.04354489,661.65,661.17,2.25389651]
[1749502355045,1.04354489,661.71,661.17,2.25389651]
[1749502355247,1.04354489,661.7,661.17,2.25389651]
[1749502355446,1.04354489,661.69,661.17,2.25389651]
[1749502355651,1.04354489,661.68,661.17,2.25389651]
[1749502355852,1.04354489,661.67,661.17,2.25389651]
[1749502356053,1.04354489,661.71,661.17,2.25389651]
[1749502356252,1.04354489,661.7,661.2,2.25389651]
[1749502356552,1.04354489,661.69,661.2,2.25389651]
[1749502356747,1.04354489,661.68,661.18,2.25389651]
[1749502356950,2.72567905,661.69,661.18,2.25389651]
[1749502357253,1.04354489,661.68,661.18,2.25389651]
[1749502357551,1.04354489,661.79,661.18,2.25389651]
[1749502357746,1.04354489,661.78,661.18,2.25389651]
[1749502357949,1.04354489,661.77,661.18,2.25389651]
[1749502358150,1.04354489,661.76,661.18,2.25389651]
[1749502358352,1.04354489,661.75,661.18,2.25389651]
[1749502358552,1.04354489,661.74,661.18,2.25389651]
[1749502358848,1.04354489,661.74,661.03,0.30255812]
[1749502358849,1.04354489,661.73,661.17,2.25389651]
[1749502359050,1.04354489,661.72,661.17,2.25389651]
[1749502359247,1.04354489,661.71,661.17,2.25389651]
[1749502359447,1.04354489,661.7,661.17,2.25389651]
[1749502359652,3.74140433,661.72,661.17,2.25389651]
[1749502359947,2.72552134,661.71,661.16,2.25389651]
[1749502360152,2.22379111,661.7,661.16,2.25389651]
[1749502360353,2.2237913,661.69,661.16,2.25389651]
[1749502360550,1.04354489,661.68,661.16,2.25389651]
[1749502360850,1.04354489,661.79,661.18,2.25389651]
[1749502361049,1.04354489,661.78,661.18,2.25389651]
[1749502361349,1.04354489,661.77,661.17,2.25389651]
[1749502361546,1.04354489,661.76,661.17,2.25389651]
[1749502361749,1.04354489,661.75,661.17,2.25389651]
[1749502361948,1.04354489,661.74,661.17,2.25389651]
[1749502362252,1.04354489,661.73,661.17,2.25389651]
[1749502362454,1.04354489,661.72,661.17,2.25389651]
[1749502362649,1.04354489,661.71,661.17,2.25389651]
[1749502362853,1.04354489,661.7,661.17,2.25389651]
[1749502363149,1.04354489,661.69,661.17,2.25389651]
[1749502363353,1.04354489,661.79,661.17,2.25389651]
[1749502363550,1.04354489,661.78,661.17,2.25389651]
[1749502363754,1.04354489,661.77,661.17,2.25389651]
[1749502363950,1.04354489,661.76,661.17,2.25389651]
[1749502364150,1.04354489,661.75,661.17,2.25389651]
[1749502364354,1.04354489,661.74,661.17,2.25389651]
[1749502364554,1.04354489,661.73,661.17,2.25389651]
[1749502364752,1.04354489,661.72,661.17,2.25389651]
[1749502365055,1.04354489,661.71,661.17,2.25389651]
[1749502365353,1.04354489,661.79,661.18,2.25389651]
[1749502365551,1.04354489,661.78,661.18,2.25389651]
[1749502365755,1.04354489,661.77,661.18,2.25389651]
[1749502366052,1.04354489,661.76,661.17,2.25389651]
[1749502366251,1.04354489,661.75,661.17,2.25389651]
[1749502366457,1.04354489,661.74,661.17,2.25389651]
[1749502366655,1.04354489,661.73,661.19,2.25389651]
[1749502366853,1.04354489,661.72,661.2,2.25389651]
[1749502367156,1.04354489,661.71,661.2,2.25389651]
[1749502367351,1.04354489,661.79,661.21,2.25389651]
[1749502367656,1.04354489,661.78,661.21,2.25389651]
[1749502367951,1.04354489,661.77,661.21,2.25389651]
[1749502368156,1.04354489,661.76,661.21,2.25389651]
[1749502368356,1.04354489,661.75,661.21,2.25389651]
[1749502368553,1.04354489,661.74,661.24,2.25389651]
[1749502368852,1.04354489,661.73,661.24,2.25389651]
[1749502369153,1.04354489,661.72,661.24,2.25389651]
[1749502369452,1.04354489,661.79,661.24,2.25389651]
[1749502369655,1.04354489,661.78,661.24,2.25389651]
[1749502369854,1.04354489,661.77,661.25,2.25389651]
[1749502370057,1.04354489,661.76,661.25,2.25389651]
[1749502370257,1.04354489,661.75,661.25,2.25389651]
[1749502370454,1.04354489,661.74,661.25,2.25389651]
[1749502370757,1.04354489,661.73,661.25,2.25389651]
[1749502370953,1.04354489,661.72,661.25,2.25389651]
[1749502371255,2.22166071,661.73,661.26,2.25389651]
[1749502371451,2.72315063,661.72,661.26,2.25389651]
[1749502371656,2.22166662,661.71,661.26,2.25389651]
[1749502371855,2.22166662,661.7,661.26,2.25389651]
[1749502372054,2.22166662,661.69,661.26,2.25389651]
[1749502372257,1.04354489,661.68,661.26,2.25389651]
[1749502372453,1.04354489,661.79,661.26,2.25389651]
[1749502372653,1.04354489,661.78,661.26,2.25389651]
[1749502372954,1.04354489,661.77,661.28,2.25389651]
[1749502373154,1.04354489,661.76,661.28,2.25389651]
[1749502373557,1.04354489,661.79,661.29,2.25389651]
[1749502373857,1.04354489,661.78,661.29,2.25389651]
[1749502374054,1.04354489,661.77,661.29,2.25389651]
[1749502374258,1.04354489,661.79,661.29,2.25389651]
[1749502374459,1.04354489,661.78,661.28,2.25389651]
[1749502374658,1.04354489,661.77,661.28,2.25389651]
[1749502374955,1.04354489,661.79,661.28,2.25389651]
[1749502375159,1.04354489,661.78,661.28,2.25389651]
[1749502375454,1.04354489,661.77,661.28,2.25389651]
[1749502375753,1.04354489,661.79,661.27,2.25389651]
[1749502375958,1.04354489,661.78,661.27,2.25389651]
[1749502376156,1.04354489,661.77,661.27,2.25389651]
[1749502376361,2.55942181,661.79,661.27,2.25389651]
[1749502376560,2.72276497,661.78,661.27,2.25389651]
[1749502376758,2.72277294,661.77,661.27,2.25389651]
[1749502377058,0.26305048,661.8,661.27,2.25389651]
[1749502377059,2.22194079,661.76,661.27,2.25389651]
[1749502377255,2.22177166,661.75,661.27,2.25389651]
[1749502377453,2.22177166,661.74,661.27,2.25389651]
[1749502377659,1.04354489,661.73,661.27,2.25389651]
[1749502377856,1.04354489,661.79,661.27,2.25389651]
[1749502378055,1.04354489,661.78,661.27,2.25389651]
[1749502378255,0.26305048,661.8,661.27,2.25389651]
[1749502378256,1.04354489,661.79,661.27,2.25389651]
[1749502378456,1.04354489,661.78,661.27,2.25389651]
[1749502378655,1.04354489,661.79,661.27,2.25389651]
[1749502378859,1.04354489,661.78,661.27,2.25389651]
[1749502379062,1.04354489,661.79,661.27,2.25389651]
[1749502379357,2.5598605,661.79,661.27,2.25389651]
[1749502379560,1.67985777,661.78,661.27,2.25389651]
[1749502379758,0.50154486,661.78,661.27,2.25389651]
[1749502379958,1.67985736,661.78,661.27,2.25389651]
[1749502380155,2.05831901,661.79,661.27,2.25389651]
[1749502380360,2.69463172,661.78,661.27,2.25389651]
[1749502380658,2.72263905,661.77,661.27,2.25389651]
[1749502380856,2.22112929,661.76,661.27,2.25389651]
[1749502381162,1.04354489,661.75,661.29,2.25389651]
[1749502381356,0.26305048,661.8,661.31,2.25389651]
[1749502381957,0.26305048,661.8,661.3,2.25389651]
[1749502382362,0.26305048,661.8,661.31,2.25389651]
[1749502382661,0.26305048,661.8,661.32,2.25389651]
[1749502383556,0.26305048,661.8,661.03,0.30255812]
[1749502383557,0.26305048,661.8,661.3,2.25389651]
[1749502383958,0.26305048,661.8,661.31,2.25389651]
[1749502384359,0.26305048,661.8,661.3,2.25389651]
[1749502384561,0.26305048,661.8,661.31,2.25389651]
[1749502387464,0.26305048,661.8,661.3,2.25389651]
[1749502387864,0.26305048,661.8,661.17,2.25389651]
[1749502388065,0.26305048,661.8,661.03,0.30255812]
[1749502388066,0.26305048,661.8,661.16,2.25389651]
[1749502388669,1.30659537,661.8,661.15,2.25389651]
[1749502388866,1.30659537,661.8,661.03,0.30255812]
[1749502388867,0.26305048,661.8,661.14,2.25389651]
[1749502390270,0.26305048,661.8,661.15,2.25389651]
[1749502390471,2.9795746,661.8,661.14,2.25389651]
[1749502390667,3.72751711,661.79,661.14,2.25389651]
[1749502390971,1.04354489,661.78,661.15,2.25389651]
[1749502391167,0.26305048,661.8,661.15,2.25389651]
[1749502392771,1.30659537,661.8,661.15,2.25389651]
[1749502392969,0.26305048,661.8,661.15,2.25389651]
[1749502393773,1.30659537,661.8,661.15,2.25389651]
[1749502394069,0.26305048,661.8,661.15,2.25389651]
[1749502395673,1.29962278,661.8,661.15,2.25389651]
[1749502395870,0.26305048,661.8,661.15,2.25389651]
[1749502396474,1.29962278,661.8,661.15,2.25389651]
[1749502396773,0.26305048,661.8,661.15,2.25389651]
[1749502397173,1.0365723,661.79,661.13,2.25389651]
[1749502397575,0.26305048,661.8,661.03,0.30255812]
[1749502397576,0.26305048,661.8,661.18,2.25389651]
[1749502397776,0.26305048,661.8,661.2,2.25389651]
[1749502398274,1.79775353,661.8,661.2,2.25389651]
[1749502398479,1.0365723,661.79,661.2,2.25389651]
[1749502398775,0.26305048,661.8,661.2,2.25389651]
[1749502401676,0.26305048,661.8,661.19,2.25389651]
[1749502402677,1.29962278,661.8,661.19,2.25389651]
[1749502402880,1.0365723,661.79,661.15,2.25389651]
[1749502406681,1.0365723,661.78,661.12,2.25389651]
[1749502406979,1.0365723,661.79,661.14,2.25389651]
[1749502407278,1.0365723,661.78,661.14,2.25389651]
[1749502407482,1.0365723,661.79,661.14,2.25389651]
[1749502408681,1.0365723,661.78,661.14,2.25389651]
[1749502408878,1.0365723,661.79,661.14,2.25389651]
[1749502409077,1.0365723,661.78,661.12,2.25389651]
[1749502409278,1.0365723,661.77,661.12,2.25389651]
[1749502409482,1.0365723,661.76,661.12,2.25389651]
[1749502409782,1.0365723,661.75,661.1,2.25389651]
[1749502410082,1.0365723,661.79,661.1,2.25389651]
[1749502410377,0.26305048,661.8,661.1,2.25389651]
[1749502410378,1.0365723,661.78,661.1,2.25389651]
[1749502410678,1.0365723,661.77,661.1,2.25389651]
[1749502410877,1.0365723,661.76,661.1,2.25389651]
[1749502411075,1.77248938,661.8,661.1,2.25389651]
[1749502411076,1.0365723,661.75,661.1,2.25389651]
[1749502411281,3.72100366,661.78,661.1,2.25389651]
[1749502411581,3.72085609,661.77,661.1,2.25389651]
[1749502411782,3.72098797,661.76,661.1,2.25389651]
[1749502412077,3.72101988,661.75,661.1,2.25389651]
[1749502412282,3.72101763,661.74,661.1,2.25389651]
[1749502412477,2.70977134,661.73,661.1,2.25389651]
[1749502412679,2.70977134,661.72,661.1,2.25389651]
[1749502412880,0.26305048,661.8,661.11,2.25389651]
[1749502412881,2.70974988,661.71,661.11,2.25389651]
[1749502413083,2.21151133,661.7,661.11,2.25389651]
[1749502413380,2.21151133,661.69,661.11,2.25389651]
[1749502413578,1.0365723,661.68,661.11,2.25389651]
[1749502413781,1.0365723,661.79,661.09,2.25389651]
[1749502413979,0.26305048,661.8,661.09,2.25389651]
[1749502413980,1.0365723,661.78,661.09,2.25389651]
[1749502414181,1.0365723,661.77,661.09,2.25389651]
[1749502414384,1.0365723,661.76,661.09,2.25389651]
[1749502414684,1.0365723,661.75,661.09,2.25389651]
[1749502414880,1.0365723,661.74,661.09,2.25389651]
[1749502415078,2.04783215,661.77,661.09,2.25389651]
[1749502415283,2.04797669,661.76,661.09,2.25389651]
[1749502415478,1.0365723,661.75,661.09,2.25389651]
[1749502415680,1.0365723,661.74,661.09,2.25389651]
[1749502415878,1.0365723,661.79,661.09,2.25389651]
[1749502416084,1.0365723,661.78,661.09,2.25389651]
[1749502416384,1.0365723,661.77,661.09,2.25389651]
[1749502416682,1.0365723,661.76,661.12,2.25389651]
[1749502416981,1.0365723,661.75,661.12,2.25389651]
[1749502417185,3.72090403,661.79,661.12,2.25389651]
[1749502417486,3.7212863,661.78,661.12,2.25389651]
[1749502417686,3.7214163,661.77,661.12,2.25389651]
[1749502417883,2.54683176,661.76,661.12,2.25389651]
[1749502418083,3.72171925,661.75,661.13,2.25389651]
[1749502418285,3.72171925,661.74,661.13,2.25389651]
[1749502418486,3.72171925,661.73,661.13,2.25389651]
[1749502418784,2.21145979,661.72,661.13,2.25389651]
[1749502418983,2.71067364,661.71,661.13,2.25389651]
[1749502419187,1.0365723,661.7,661.11,2.25389651]
[1749502419384,1.0365723,661.79,661.11,2.25389651]
[1749502419585,1.0365723,661.78,661.12,2.25389651]
[1749502419784,1.0365723,661.77,661.12,2.25389651]
[1749502419986,1.0365723,661.76,661.12,2.25389651]
[1749502420184,1.0365723,661.75,661.11,2.25389651]
[1749502420384,1.0365723,661.79,661.11,2.25389651]
[1749502420587,1.0365723,661.78,661.11,2.25389651]
[1749502420784,1.0365723,661.77,661.11,2.25389651]
[1749502420983,1.0365723,661.76,661.11,2.25389651]
[1749502421288,1.0365723,661.79,661.12,2.25389651]
[1749502421489,1.0365723,661.78,661.12,2.25389651]
[1749502421687,0.26305048,661.8,661.12,2.25389651]
[1749502421688,1.0365723,661.77,661.12,2.25389651]
[1749502421888,1.0365723,661.76,661.12,2.25389651]
[1749502422084,3.72038365,661.79,661.12,2.25389651]
[1749502422286,3.22299874,661.78,661.12,2.25389651]
[1749502422485,1.0365723,661.77,661.12,2.25389651]
[1749502422688,1.0365723,661.79,661.12,2.25389651]
[1749502422886,1.0365723,661.78,661.12,2.25389651]
[1749502423189,1.0365723,661.77,661.13,2.25389651]
[1749502423390,1.0365723,661.79,661.13,2.25389651]
[1749502423589,1.0365723,661.78,661.15,2.25389651]
[1749502423789,2.5460665,661.78,661.15,2.25389651]
[1749502424088,1.0365723,661.77,661.15,2.25389651]
[1749502424284,1.0365723,661.79,661.15,2.25389651]
[1749502424485,1.0365723,661.78,661.11,2.25389651]
[1749502424685,1.0365723,661.77,661.11,2.25389651]
[1749502424886,1.0365723,661.79,661.11,2.25389651]
[1749502425083,1.0365723,661.78,661.11,2.25389651]
[1749502425284,1.0365723,661.77,661.11,2.25389651]
[1749502425485,3.72014364,661.77,661.11,2.25389651]
[1749502425686,1.0365723,661.76,661.11,2.25389651]
[1749502425886,1.0365723,661.79,661.11,2.25389651]
[1749502426087,1.0365723,661.78,661.11,2.25389651]
[1749502426289,1.0365723,661.77,661.11,2.25389651]
[1749502426489,1.0365723,661.79,661.11,2.25389651]
[1749502426688,1.0365723,661.78,661.11,2.25389651]
[1749502426890,0.26305048,661.8,661.11,2.25389651]
[1749502426891,1.0365723,661.77,661.11,2.25389651]
[1749502427088,3.72052785,661.79,661.11,2.25389651]
[1749502427387,0.26305048,661.8,661.11,2.25389651]
[1749502427388,1.53476948,661.78,661.11,2.25389651]
[1749502427691,1.0365723,661.77,661.11,2.25389651]
[1749502427893,1.0365723,661.79,661.11,2.25389651]
[1749502428086,1.0365723,661.78,661.11,2.25389651]
[1749502428386,1.0365723,661.79,661.11,2.25389651]
[1749502428589,1.0365723,661.78,661.11,2.25389651]
[1749502428789,1.0365723,661.79,661.11,2.25389651]
[1749502428989,1.0365723,661.78,661.11,2.25389651]
[1749502429187,3.71962684,661.79,661.13,2.25389651]
[1749502429387,2.70875127,661.78,661.13,2.25389651]